[Event "Titled Tuesday Blitz March 01 Late 2022"]
[White "Yurtseven, Melih"]
[Black "Mickiewicz, Piotr"]
[WhiteFideId "6312160"]
[BlackFideId "1114891"]
[WhiteElo "2160"]
[BlackElo "2266"]
[Result "1/2-1/2"]
[Round "09"]
[TimeControl "180+1"]
[Date "2022.03.02"]
[WhiteClock "0:00:23"]
[BlackClock "0:00:12"]

1. Nf3 {[%clk 0:03:00]}  Nf6 {[%clk 0:02:57]} 2. g3 {[%clk 0:03:00]}  g6 {[%clk 0:02:57]} 3. b4 {[%clk 0:03:00]}  Bg7 {[%clk 0:02:58]} 4. Bb2 {[%clk 0:02:59]}  a5 {[%clk 0:02:56]} 5. b5 {[%clk 0:02:59]}  b6 {[%clk 0:02:55]} 6. Bg2 {[%clk 0:02:58]}  Bb7 {[%clk 0:02:55]} 7. O-O {[%clk 0:02:59]}  d6 {[%clk 0:02:55]} 8. d3 {[%clk 0:02:59]}  Nbd7 {[%clk 0:02:55]} 9. e4 {[%clk 0:02:56]}  e5 {[%clk 0:02:52]} 10. d4 {[%clk 0:02:53]}  O-O {[%clk 0:02:51]} 11. dxe5 {[%clk 0:02:52]}  Ng4 {[%clk 0:02:50]} 12. Nbd2 {[%clk 0:02:49]}  Ngxe5 {[%clk 0:02:49]} 13. Nd4 {[%clk 0:02:46]}  Nc5 {[%clk 0:02:40]} 14. a4 {[%clk 0:02:42]}  Re8 {[%clk 0:02:32]} 15. Ra3 {[%clk 0:02:31]}  h5 {[%clk 0:02:29]} 16. Qa1 {[%clk 0:02:29]}  Ng4 {[%clk 0:01:54]} 17. h3 {[%clk 0:02:25]}  Nf6 {[%clk 0:01:48]} 18. f3 {[%clk 0:02:24]}  d5 {[%clk 0:01:13]} 19. e5 {[%clk 0:02:24]}  Nfd7 {[%clk 0:01:03]} 20. f4 {[%clk 0:02:24]}  Nf8 {[%clk 0:01:02]} 21. N2f3 {[%clk 0:02:16]}  Ne4 {[%clk 0:01:00]} 22. Kh2 {[%clk 0:02:15]}  Ne6 {[%clk 0:00:49]} 23. Nxe6 {[%clk 0:02:15]}  fxe6 {[%clk 0:00:48]} 24. Nd4 {[%clk 0:02:14]}  Qd7 {[%clk 0:00:47]} 25. Qe1 {[%clk 0:02:06]}  Rf8 {[%clk 0:00:46]} 26. c4 {[%clk 0:02:04]}  h4 {[%clk 0:00:39]} 27. gxh4 {[%clk 0:02:02]}  Rxf4 {[%clk 0:00:35]} 28. Rxf4 {[%clk 0:01:57]}  Bxe5 {[%clk 0:00:35]} 29. Rf3 {[%clk 0:01:38]}  Rf8 {[%clk 0:00:34]} 30. Qe3 {[%clk 0:01:35]}  Qd6 {[%clk 0:00:33]} 31. Kh1 {[%clk 0:01:05]}  Rxf4 {[%clk 0:00:30]} 32. cxd5 {[%clk 0:01:02]}  exd5 {[%clk 0:00:29]} 33. Rxf4 {[%clk 0:00:53]}  Bxf4 {[%clk 0:00:30]} 34. Qf3 {[%clk 0:00:51]}  Qe5 {[%clk 0:00:20]} 35. Ne2 {[%clk 0:00:39]}  Qxb2 {[%clk 0:00:19]} 36. Nxf4 {[%clk 0:00:40]}  Qf2 {[%clk 0:00:13]} 37. Nxg6 {[%clk 0:00:27]}  Ng3+ {[%clk 0:00:12]} 38. Kh2 {[%clk 0:00:27]}  Nf1+ {[%clk 0:00:12]} 39. Kh1 {[%clk 0:00:27]}  Ng3+ {[%clk 0:00:12]} 40. Kh2 {[%clk 0:00:24]}  Nf1+ {[%clk 0:00:12]} 41. Kh1 {[%clk 0:00:23]}  Ng3+ {[%clk 0:00:12]} 1/2-1/2


[Site "https://www.chess.com"]

[Event "Titled Tuesday Blitz March 01 Late 2022"]
[White "Zhou, Qiyu"]
[Black "Levine, David"]
[WhiteFideId "505161"]
[BlackFideId "2011611"]
[WhiteElo "1925"]
[BlackElo "2134"]
[Result "1-0"]
[Round "09"]
[TimeControl "180+1"]
[Date "2022.03.02"]
[WhiteClock "0:00:14"]
[BlackClock "0:00:01"]

1. e4 {[%clk 0:03:00]}  e5 {[%clk 0:02:59]} 2. Nf3 {[%clk 0:03:01]}  Nc6 {[%clk 0:02:58]} 3. Bb5 {[%clk 0:03:01]}  a6 {[%clk 0:02:58]} 4. Ba4 {[%clk 0:03:01]}  Nf6 {[%clk 0:02:57]} 5. O-O {[%clk 0:03:01]}  Be7 {[%clk 0:02:57]} 6. Re1 {[%clk 0:02:57]}  b5 {[%clk 0:02:56]} 7. Bb3 {[%clk 0:02:57]}  d6 {[%clk 0:02:56]} 8. c3 {[%clk 0:02:57]}  O-O {[%clk 0:02:55]} 9. h3 {[%clk 0:02:57]}  Bb7 {[%clk 0:02:50]} 10. d4 {[%clk 0:02:55]}  Re8 {[%clk 0:02:46]} 11. Bxf7+ {[%clk 0:02:28]}  Kxf7 {[%clk 0:02:45]} 12. Qb3+ {[%clk 0:02:29]}  d5 {[%clk 0:02:35]} 13. dxe5 {[%clk 0:02:28]}  Ng8 {[%clk 0:02:18]} 14. exd5 {[%clk 0:02:19]}  Na5 {[%clk 0:02:12]} 15. e6+ {[%clk 0:02:19]}  Kf8 {[%clk 0:02:10]} 16. Qc2 {[%clk 0:02:19]}  Nf6 {[%clk 0:02:06]} 17. Bg5 {[%clk 0:01:57]}  Kg8 {[%clk 0:02:00]} 18. Nbd2 {[%clk 0:01:45]}  Bxd5 {[%clk 0:01:44]} 19. Nd4 {[%clk 0:01:35]}  Qc8 {[%clk 0:01:23]} 20. Qf5 {[%clk 0:01:32]}  Bb7 {[%clk 0:01:11]} 21. N2f3 {[%clk 0:01:11]}  c5 {[%clk 0:01:10]} 22. Nc2 {[%clk 0:01:04]}  Qc6 {[%clk 0:01:10]} 23. Ne3 {[%clk 0:00:58]}  Qe4 {[%clk 0:01:08]} 24. Bxf6 {[%clk 0:00:39]}  Qxf5 {[%clk 0:00:56]} 25. Nxf5 {[%clk 0:00:40]}  gxf6 {[%clk 0:00:54]} 26. Rad1 {[%clk 0:00:34]}  Bxf3 {[%clk 0:00:41]} 27. gxf3 {[%clk 0:00:33]}  Kf8 {[%clk 0:00:37]} 28. Rd7 {[%clk 0:00:30]}  Rad8 {[%clk 0:00:18]} 29. Nxe7 {[%clk 0:00:25]}  Rxd7 {[%clk 0:00:06]} 30. exd7 {[%clk 0:00:26]}  Rd8 {[%clk 0:00:07]} 31. Nd5 {[%clk 0:00:24]}  Rxd7 {[%clk 0:00:06]} 32. Nxf6 {[%clk 0:00:25]}  Rd2 {[%clk 0:00:04]} 33. Nxh7+ {[%clk 0:00:25]}  Kg7 {[%clk 0:00:04]} 34. Ng5 {[%clk 0:00:21]}  Rxb2 {[%clk 0:00:04]} 35. Ne6+ {[%clk 0:00:21]}  Kf6 {[%clk 0:00:04]} 36. Nxc5 {[%clk 0:00:22]}  Rxa2 {[%clk 0:00:04]} 37. Nxa6 {[%clk 0:00:22]}  Nc4 {[%clk 0:00:03]} 38. Nc7 {[%clk 0:00:22]}  Rb2 {[%clk 0:00:02]} 39. Nd5+ {[%clk 0:00:21]}  Kf5 {[%clk 0:00:02]} 40. Kg2 {[%clk 0:00:21]}  Nd2 {[%clk 0:00:02]} 41. Re8 {[%clk 0:00:16]}  Nc4 {[%clk 0:00:01]} 42. Kg3 {[%clk 0:00:14]} 1-0


[Site "https://www.chess.com"]

[Event "Titled Tuesday Blitz March 01 Late 2022"]
[White "Zhurbinsky, David"]
[Black "Vifleemskaia, Svetlana"]
[WhiteFideId "2072904"]
[BlackFideId "4129490"]
[WhiteElo "2509"]
[BlackElo "1901"]
[Result "0-1"]
[Round "09"]
[TimeControl "180+1"]
[Date "2022.03.02"]
[WhiteClock "0:00:01"]
[BlackClock "0:00:47"]

1. e4 {[%clk 0:03:00]}  e5 {[%clk 0:02:59]} 2. Nf3 {[%clk 0:02:57]}  Nc6 {[%clk 0:02:59]} 3. Bb5 {[%clk 0:02:56]}  a6 {[%clk 0:02:58]} 4. Ba4 {[%clk 0:02:57]}  Nf6 {[%clk 0:02:58]} 5. O-O {[%clk 0:02:57]}  Be7 {[%clk 0:02:59]} 6. Re1 {[%clk 0:02:53]}  b5 {[%clk 0:02:59]} 7. Bb3 {[%clk 0:02:52]}  d6 {[%clk 0:02:59]} 8. c3 {[%clk 0:02:53]}  O-O {[%clk 0:02:58]} 9. h3 {[%clk 0:02:53]}  Nd7 {[%clk 0:02:57]} 10. d4 {[%clk 0:02:52]}  Bf6 {[%clk 0:02:57]} 11. Be3 {[%clk 0:02:46]}  Na5 {[%clk 0:02:56]} 12. Bc2 {[%clk 0:02:45]}  Nc4 {[%clk 0:02:56]} 13. Bc1 {[%clk 0:02:34]}  Bb7 {[%clk 0:02:55]} 14. b3 {[%clk 0:02:30]}  Ncb6 {[%clk 0:02:53]} 15. Nbd2 {[%clk 0:02:30]}  b4 {[%clk 0:02:51]} 16. Bb2 {[%clk 0:02:00]}  bxc3 {[%clk 0:02:49]} 17. Bxc3 {[%clk 0:02:01]}  exd4 {[%clk 0:02:49]} 18. Bxd4 {[%clk 0:02:00]}  c5 {[%clk 0:02:43]} 19. Bxf6 {[%clk 0:01:43]}  Qxf6 {[%clk 0:02:44]} 20. Nf1 {[%clk 0:01:42]}  d5 {[%clk 0:02:41]} 21. e5 {[%clk 0:01:32]}  Qe7 {[%clk 0:02:30]} 22. Ng3 {[%clk 0:01:28]}  g6 {[%clk 0:02:25]} 23. Qd2 {[%clk 0:01:24]}  Rfe8 {[%clk 0:02:22]} 24. Nh5 {[%clk 0:00:50]}  d4 {[%clk 0:01:55]} 25. Ng5 {[%clk 0:00:25]}  Nd5 {[%clk 0:01:40]} 26. e6 {[%clk 0:00:20]}  f6 {[%clk 0:01:30]} 27. exd7 {[%clk 0:00:17]}  Qxd7 {[%clk 0:01:26]} 28. Be4 {[%clk 0:00:06]}  gxh5 {[%clk 0:01:00]} 29. Nf3 {[%clk 0:00:02]}  Qg7 {[%clk 0:00:54]} 30. Nh4 {[%clk 0:00:01]}  Qg5 {[%clk 0:00:47]} 0-1


[Site "https://www.chess.com"]

[Event "Titled Tuesday Blitz March 01 Late 2022"]
[White "Zubritskiy, Artyom"]
[Black "Aukhatov, Roman"]
[WhiteFideId "4181247"]
[BlackFideId "44150768"]
[WhiteElo "2459"]
[BlackElo "2112"]
[Result "1-0"]
[Round "09"]
[TimeControl "180+1"]
[Date "2022.03.01"]
[WhiteClock "0:00:08"]
[BlackClock "0:00:01"]

1. d4 {[%clk 0:03:00]}  Nf6 {[%clk 0:02:58]} 2. c4 {[%clk 0:03:00]}  c5 {[%clk 0:02:59]} 3. dxc5 {[%clk 0:03:00]}  e6 {[%clk 0:02:58]} 4. Nf3 {[%clk 0:03:00]}  Bxc5 {[%clk 0:02:58]} 5. e3 {[%clk 0:03:00]}  O-O {[%clk 0:02:57]} 6. Qc2 {[%clk 0:03:01]}  Nc6 {[%clk 0:02:53]} 7. a3 {[%clk 0:03:01]}  Bb6 {[%clk 0:02:50]} 8. Bd3 {[%clk 0:02:57]}  d5 {[%clk 0:02:43]} 9. Nc3 {[%clk 0:02:50]}  d4 {[%clk 0:02:26]} 10. exd4 {[%clk 0:02:49]}  Nxd4 {[%clk 0:02:26]} 11. Nxd4 {[%clk 0:02:49]}  Bxd4 {[%clk 0:02:27]} 12. O-O {[%clk 0:02:42]}  a6 {[%clk 0:02:16]} 13. Bg5 {[%clk 0:02:34]}  h6 {[%clk 0:02:15]} 14. Bh4 {[%clk 0:02:34]}  Be5 {[%clk 0:02:14]} 15. Rad1 {[%clk 0:02:27]}  Qc7 {[%clk 0:02:03]} 16. Bg3 {[%clk 0:02:17]}  Bxg3 {[%clk 0:02:03]} 17. hxg3 {[%clk 0:02:18]}  Bd7 {[%clk 0:02:03]} 18. Ne4 {[%clk 0:02:11]}  Nxe4 {[%clk 0:02:02]} 19. Bxe4 {[%clk 0:02:12]}  Bc6 {[%clk 0:02:03]} 20. b3 {[%clk 0:01:48]}  Rfd8 {[%clk 0:01:58]} 21. Bxc6 {[%clk 0:01:40]}  Qxc6 {[%clk 0:01:58]} 22. Rxd8+ {[%clk 0:01:40]}  Rxd8 {[%clk 0:01:57]} 23. Rd1 {[%clk 0:01:41]}  Rxd1+ {[%clk 0:01:35]} 24. Qxd1 {[%clk 0:01:42]}  Qc5 {[%clk 0:01:35]} 25. Qd8+ {[%clk 0:01:38]}  Kh7 {[%clk 0:01:34]} 26. Qd7 {[%clk 0:01:19]}  b5 {[%clk 0:01:25]} 27. cxb5 {[%clk 0:01:13]}  axb5 {[%clk 0:01:16]} 28. Qxf7 {[%clk 0:01:09]}  Qxa3 {[%clk 0:00:52]} 29. Qxe6 {[%clk 0:01:08]}  Qc1+ {[%clk 0:00:42]} 30. Kh2 {[%clk 0:01:08]}  Qc2 {[%clk 0:00:37]} 31. f3 {[%clk 0:01:04]}  Qc5 {[%clk 0:00:23]} 32. g4 {[%clk 0:00:58]}  Qc7+ {[%clk 0:00:20]} 33. Kh3 {[%clk 0:00:58]}  Qc1 {[%clk 0:00:10]} 34. Qf5+ {[%clk 0:00:56]}  Kh8 {[%clk 0:00:10]} 35. Qxb5 {[%clk 0:00:46]}  Qh1+ {[%clk 0:00:09]} 36. Kg3 {[%clk 0:00:46]}  Qe1+ {[%clk 0:00:10]} 37. Kf4 {[%clk 0:00:46]}  Qd2+ {[%clk 0:00:10]} 38. Ke4 {[%clk 0:00:43]}  Qc2+ {[%clk 0:00:07]} 39. Ke3 {[%clk 0:00:41]}  Qxg2 {[%clk 0:00:07]} 40. Qe8+ {[%clk 0:00:39]}  Kh7 {[%clk 0:00:07]} 41. Qe4+ {[%clk 0:00:40]}  Kh8 {[%clk 0:00:06]} 42. b4 {[%clk 0:00:34]}  Qg1+ {[%clk 0:00:06]} 43. Kd3 {[%clk 0:00:34]}  Qb1+ {[%clk 0:00:06]} 44. Kc4 {[%clk 0:00:35]}  Qc1+ {[%clk 0:00:04]} 45. Kb5 {[%clk 0:00:34]}  Qc8 {[%clk 0:00:02]} 46. Qc6 {[%clk 0:00:30]}  Qb8+ {[%clk 0:00:02]} 47. Kc4 {[%clk 0:00:30]}  Qf4+ {[%clk 0:00:02]} 48. Qe4 {[%clk 0:00:25]}  Qc1+ {[%clk 0:00:02]} 49. Kd5 {[%clk 0:00:24]}  Qd1+ {[%clk 0:00:02]} 50. Kc6 {[%clk 0:00:22]}  Qa4+ {[%clk 0:00:03]} 51. b5 {[%clk 0:00:23]}  Qa8+ {[%clk 0:00:03]} 52. Kc7 {[%clk 0:00:20]}  Qa7+ {[%clk 0:00:03]} 53. Qb7 {[%clk 0:00:16]}  Qc5+ {[%clk 0:00:03]} 54. Qc6 {[%clk 0:00:16]}  Qe5+ {[%clk 0:00:03]} 55. Kb7 {[%clk 0:00:15]}  h5 {[%clk 0:00:02]} 56. gxh5 {[%clk 0:00:10]}  Qxh5 {[%clk 0:00:02]} 57. b6 {[%clk 0:00:10]}  Qa5 {[%clk 0:00:02]} 58. Kc7 {[%clk 0:00:08]}  Qa4 {[%clk 0:00:01]} 59. Qxa4 {[%clk 0:00:08]} 1-0


[Site "https://www.chess.com"]

[Event "Titled Tuesday Blitz March 01 Late 2022"]
[White "Beerdsen, Thomas"]
[Black "Van Foreest, Jorden"]
[WhiteFideId "1030108"]
[BlackFideId "1039784"]
[WhiteElo "2585"]
[BlackElo "2609"]
[Result "0-1"]
[Round "10"]
[TimeControl "180+1"]
[Date "2022.03.01"]
[WhiteClock "0:01:07"]
[BlackClock "0:00:39"]

1. e4 {[%clk 0:03:00]}  Nc6 {[%clk 0:02:56]} 2. Nc3 {[%clk 0:03:00]}  e5 {[%clk 0:02:54]} 3. Bc4 {[%clk 0:03:00]}  Nf6 {[%clk 0:02:53]} 4. d3 {[%clk 0:03:00]}  Na5 {[%clk 0:02:53]} 5. Nf3 {[%clk 0:03:00]}  d6 {[%clk 0:02:50]} 6. a4 {[%clk 0:03:00]}  Nxc4 {[%clk 0:02:49]} 7. dxc4 {[%clk 0:03:01]}  Be7 {[%clk 0:02:50]} 8. O-O {[%clk 0:02:57]}  O-O {[%clk 0:02:50]} 9. Qd3 {[%clk 0:02:50]}  a5 {[%clk 0:02:46]} 10. c5 {[%clk 0:02:47]}  dxc5 {[%clk 0:02:40]} 11. Nxe5 {[%clk 0:02:45]}  Qxd3 {[%clk 0:02:39]} 12. Nxd3 {[%clk 0:02:46]}  Rd8 {[%clk 0:02:37]} 13. Bf4 {[%clk 0:02:39]}  c4 {[%clk 0:02:35]} 14. Ne5 {[%clk 0:02:34]}  Bd6 {[%clk 0:02:30]} 15. Rfd1 {[%clk 0:02:29]}  Re8 {[%clk 0:02:07]} 16. Nb5 {[%clk 0:02:22]}  Nh5 {[%clk 0:01:39]} 17. Rxd6 {[%clk 0:01:51]}  cxd6 {[%clk 0:01:37]} 18. Nxd6 {[%clk 0:01:52]}  Re6 {[%clk 0:01:28]} 19. Nexc4 {[%clk 0:01:39]}  Nxf4 {[%clk 0:01:26]} 20. e5 {[%clk 0:01:38]}  Bd7 {[%clk 0:01:19]} 21. Nxb7 {[%clk 0:01:34]}  Bc6 {[%clk 0:01:17]} 22. Nbxa5 {[%clk 0:01:32]}  Bxg2 {[%clk 0:01:17]} 23. f3 {[%clk 0:01:28]}  Bxf3 {[%clk 0:01:17]} 24. Kf2 {[%clk 0:01:29]}  Bd5 {[%clk 0:01:17]} 25. b3 {[%clk 0:01:30]}  Ng6 {[%clk 0:01:15]} 26. Re1 {[%clk 0:01:26]}  Rea6 {[%clk 0:01:14]} 27. Rd1 {[%clk 0:01:21]}  Rxa5 {[%clk 0:01:07]} 28. Nxa5 {[%clk 0:01:22]}  Rxa5 {[%clk 0:01:07]} 29. b4 {[%clk 0:01:23]}  Rxa4 {[%clk 0:01:06]} 30. c3 {[%clk 0:01:22]}  Ra2+ {[%clk 0:01:01]} 31. Ke3 {[%clk 0:01:16]}  Be6 {[%clk 0:00:50]} 32. Kd4 {[%clk 0:01:15]}  Rxh2 {[%clk 0:00:43]} 33. b5 {[%clk 0:01:15]}  Rb2 {[%clk 0:00:44]} 34. Kc5 {[%clk 0:01:15]}  h5 {[%clk 0:00:42]} 35. b6 {[%clk 0:01:14]}  Nxe5 {[%clk 0:00:42]} 36. c4 {[%clk 0:01:13]}  Nxc4 {[%clk 0:00:42]} 37. b7 {[%clk 0:01:13]}  Rxb7 {[%clk 0:00:41]} 38. Rd8+ {[%clk 0:01:12]}  Kh7 {[%clk 0:00:41]} 39. Rd1 {[%clk 0:01:09]}  h4 {[%clk 0:00:41]} 40. Rd4 {[%clk 0:01:09]}  g5 {[%clk 0:00:40]} 41. Kc6 {[%clk 0:01:07]}  Rb6+ {[%clk 0:00:39]} 42. Kc5 {[%clk 0:01:07]}  h3 {[%clk 0:00:39]} 0-1


[Site "https://www.chess.com"]

[Event "Titled Tuesday Blitz March 01 Late 2022"]
[White "Cagara, Paulina"]
[Black "Vargas Pereda, Jesus Manue"]
[WhiteFideId "1124870"]
[BlackFideId "5115710"]
[WhiteElo "1828"]
[BlackElo "1781"]
[Result "1-0"]
[Round "10"]
[TimeControl "180+1"]
[Date "2022.03.02"]
[WhiteClock "0:00:38"]
[BlackClock "0:00:48"]

1. e4 {[%clk 0:03:00]}  c5 {[%clk 0:02:59]} 2. Nc3 {[%clk 0:02:59]}  Nc6 {[%clk 0:02:57]} 3. Bb5 {[%clk 0:02:58]}  e6 {[%clk 0:02:50]} 4. Bxc6 {[%clk 0:02:58]}  bxc6 {[%clk 0:02:49]} 5. d3 {[%clk 0:02:57]}  d5 {[%clk 0:02:49]} 6. f4 {[%clk 0:02:56]}  Nf6 {[%clk 0:02:46]} 7. Qe2 {[%clk 0:02:54]}  Be7 {[%clk 0:02:42]} 8. Nf3 {[%clk 0:02:54]}  Ba6 {[%clk 0:02:36]} 9. b3 {[%clk 0:02:50]}  c4 {[%clk 0:02:17]} 10. bxc4 {[%clk 0:02:49]}  Bb4 {[%clk 0:02:13]} 11. Bd2 {[%clk 0:02:46]}  Bxc3 {[%clk 0:02:13]} 12. Bxc3 {[%clk 0:02:46]}  dxe4 {[%clk 0:02:11]} 13. dxe4 {[%clk 0:02:37]}  O-O {[%clk 0:02:06]} 14. O-O {[%clk 0:02:35]}  Qb6+ {[%clk 0:02:01]} 15. Bd4 {[%clk 0:02:30]}  c5 {[%clk 0:02:00]} 16. Bxf6 {[%clk 0:02:28]}  gxf6 {[%clk 0:01:57]} 17. f5 {[%clk 0:02:16]}  e5 {[%clk 0:01:54]} 18. Rab1 {[%clk 0:01:59]}  Qa5 {[%clk 0:01:49]} 19. Rb3 {[%clk 0:01:35]}  Rad8 {[%clk 0:01:25]} 20. Nxe5 {[%clk 0:01:29]}  fxe5 {[%clk 0:01:15]} 21. f6 {[%clk 0:01:28]}  Kh8 {[%clk 0:00:56]} 22. Rh3 {[%clk 0:01:27]}  Qd2 {[%clk 0:00:51]} 23. Qh5 {[%clk 0:01:14]}  h6 {[%clk 0:00:49]} 24. Qxe5 {[%clk 0:00:46]}  Rg8 {[%clk 0:00:48]} 25. g3 {[%clk 0:00:40]}  Qd4+ {[%clk 0:00:48]} 26. Qxd4 {[%clk 0:00:39]}  Rxd4 {[%clk 0:00:48]} 27. Rxh6# {[%clk 0:00:38]} 1-0


[Site "https://www.chess.com"]

[Event "Titled Tuesday Blitz March 01 Late 2022"]
[White "Chernomordik, Pavel"]
[Black "Hamley, Ryan"]
[WhiteFideId "2804530"]
[BlackFideId "30959497"]
[WhiteElo "2450"]
[BlackElo "2586"]
[Result "1-0"]
[Round "10"]
[TimeControl "180+1"]
[Date "2022.03.02"]
[WhiteClock "0:00:37"]
[BlackClock "0:00:17"]

1. e4 {[%clk 0:03:00]}  c6 {[%clk 0:02:58]} 2. Nc3 {[%clk 0:03:00]}  g6 {[%clk 0:02:59]} 3. Bc4 {[%clk 0:02:53]}  d5 {[%clk 0:02:54]} 4. exd5 {[%clk 0:02:52]}  b5 {[%clk 0:02:55]} 5. Bb3 {[%clk 0:02:45]}  b4 {[%clk 0:02:53]} 6. Nce2 {[%clk 0:02:44]}  cxd5 {[%clk 0:02:53]} 7. a3 {[%clk 0:02:43]}  bxa3 {[%clk 0:02:42]} 8. Rxa3 {[%clk 0:02:43]}  Nc6 {[%clk 0:02:39]} 9. d4 {[%clk 0:02:42]}  e5 {[%clk 0:02:33]} 10. Ra1 {[%clk 0:02:33]}  e4 {[%clk 0:02:22]} 11. Nf4 {[%clk 0:02:30]}  Nf6 {[%clk 0:02:20]} 12. f3 {[%clk 0:02:25]}  Bd6 {[%clk 0:02:09]} 13. fxe4 {[%clk 0:02:19]}  dxe4 {[%clk 0:01:58]} 14. Ba4 {[%clk 0:02:03]}  Bd7 {[%clk 0:01:55]} 15. Nge2 {[%clk 0:02:01]}  O-O {[%clk 0:01:54]} 16. O-O {[%clk 0:02:00]}  Qc7 {[%clk 0:01:48]} 17. Ng3 {[%clk 0:01:33]}  Rfe8 {[%clk 0:01:42]} 18. c3 {[%clk 0:01:30]}  Ne7 {[%clk 0:01:36]} 19. Bb3 {[%clk 0:01:23]}  Nf5 {[%clk 0:01:33]} 20. Nxf5 {[%clk 0:01:19]}  Bxf5 {[%clk 0:01:34]} 21. h3 {[%clk 0:01:13]}  e3 {[%clk 0:01:20]} 22. Ne2 {[%clk 0:00:57]}  Ne4 {[%clk 0:01:03]} 23. Bxe3 {[%clk 0:00:53]}  Ng3 {[%clk 0:00:28]} 24. Nxg3 {[%clk 0:00:48]}  Bxg3 {[%clk 0:00:29]} 25. Qf3 {[%clk 0:00:43]}  Re7 {[%clk 0:00:25]} 26. Qxa8+ {[%clk 0:00:41]}  Kg7 {[%clk 0:00:21]} 27. Qf3 {[%clk 0:00:40]}  Be4 {[%clk 0:00:17]} 28. Qf6+ {[%clk 0:00:37]} 1-0


[Site "https://www.chess.com"]

[Event "Titled Tuesday Blitz March 01 Late 2022"]
[White "Demidov, Mikhail"]
[Black "Paravyan, David"]
[WhiteFideId "4197143"]
[BlackFideId "4194985"]
[WhiteElo "2525"]
[BlackElo "2569"]
[Result "1-0"]
[Round "10"]
[TimeControl "180+1"]
[Date "2022.03.01"]
[WhiteClock "0:00:34"]
[BlackClock "0:00:35"]

1. Nf3 {[%clk 0:03:00]}  Nf6 {[%clk 0:02:59]} 2. d4 {[%clk 0:03:00]}  g6 {[%clk 0:02:58]} 3. g3 {[%clk 0:03:00]}  Bg7 {[%clk 0:02:57]} 4. Bg2 {[%clk 0:03:00]}  d5 {[%clk 0:02:58]} 5. O-O {[%clk 0:03:00]}  O-O {[%clk 0:02:58]} 6. c3 {[%clk 0:03:00]}  Nbd7 {[%clk 0:02:58]} 7. Nbd2 {[%clk 0:03:00]}  Re8 {[%clk 0:02:58]} 8. Re1 {[%clk 0:02:59]}  e5 {[%clk 0:02:57]} 9. dxe5 {[%clk 0:02:54]}  Nxe5 {[%clk 0:02:58]} 10. Nxe5 {[%clk 0:02:50]}  Rxe5 {[%clk 0:02:59]} 11. Nf3 {[%clk 0:02:50]}  Re8 {[%clk 0:03:00]} 12. Bf4 {[%clk 0:02:49]}  c6 {[%clk 0:02:59]} 13. Qb3 {[%clk 0:02:48]}  Qb6 {[%clk 0:02:58]} 14. Rad1 {[%clk 0:02:44]}  Bf5 {[%clk 0:02:57]} 15. Nd4 {[%clk 0:02:42]}  Bg4 {[%clk 0:02:50]} 16. h3 {[%clk 0:02:41]}  Bd7 {[%clk 0:02:49]} 17. Nf3 {[%clk 0:02:17]}  Ne4 {[%clk 0:02:44]} 18. Be3 {[%clk 0:02:16]}  Qa6 {[%clk 0:02:41]} 19. Bd4 {[%clk 0:02:09]}  Bxd4 {[%clk 0:02:28]} 20. cxd4 {[%clk 0:02:00]}  Qb6 {[%clk 0:02:20]} 21. Qc2 {[%clk 0:01:54]}  Bf5 {[%clk 0:02:19]} 22. Qc1 {[%clk 0:01:54]}  Kg7 {[%clk 0:02:16]} 23. e3 {[%clk 0:01:53]}  Re7 {[%clk 0:02:14]} 24. Nh4 {[%clk 0:01:42]}  Be6 {[%clk 0:02:08]} 25. b3 {[%clk 0:01:36]}  Rae8 {[%clk 0:02:06]} 26. Qb2 {[%clk 0:01:36]}  Kg8 {[%clk 0:02:03]} 27. Nf3 {[%clk 0:01:35]}  f6 {[%clk 0:02:01]} 28. Nd2 {[%clk 0:01:31]}  Nd6 {[%clk 0:01:58]} 29. Qc3 {[%clk 0:01:27]}  Bf7 {[%clk 0:01:57]} 30. a4 {[%clk 0:01:26]}  a5 {[%clk 0:01:54]} 31. Rb1 {[%clk 0:01:24]}  Kg7 {[%clk 0:01:46]} 32. b4 {[%clk 0:01:22]}  axb4 {[%clk 0:01:47]} 33. Rxb4 {[%clk 0:01:17]}  Qd8 {[%clk 0:01:36]} 34. Reb1 {[%clk 0:01:16]}  Be6 {[%clk 0:01:33]} 35. Qc5 {[%clk 0:01:11]}  Rc7 {[%clk 0:01:07]} 36. a5 {[%clk 0:01:04]}  Ree7 {[%clk 0:01:06]} 37. Rb6 {[%clk 0:00:52]}  Nc8 {[%clk 0:00:44]} 38. R6b2 {[%clk 0:00:50]}  Bf5 {[%clk 0:00:44]} 39. Ra1 {[%clk 0:00:47]}  Qd7 {[%clk 0:00:43]} 40. Kh2 {[%clk 0:00:43]}  Nd6 {[%clk 0:00:42]} 41. a6 {[%clk 0:00:40]}  bxa6 {[%clk 0:00:43]} 42. Rxa6 {[%clk 0:00:40]}  Nf7 {[%clk 0:00:39]} 43. Ra8 {[%clk 0:00:37]}  Rc8 {[%clk 0:00:35]} 44. Rxc8 {[%clk 0:00:34]}  Qxc8 {[%clk 0:00:35]} 45. Qxe7 {[%clk 0:00:34]} 1-0


[Site "https://www.chess.com"]

[Event "Titled Tuesday Blitz March 01 Late 2022"]
[White "Djokic, Mihailo"]
[Black "Holt, Conrad"]
[WhiteFideId "976440"]
[BlackFideId "2034387"]
[WhiteElo "2008"]
[BlackElo "2586"]
[Result "0-1"]
[Round "10"]
[TimeControl "180+1"]
[Date "2022.03.01"]
[WhiteClock "0:00:30"]
[BlackClock "0:01:40"]

1. e4 {[%clk 0:03:00]}  e6 {[%clk 0:03:00]} 2. d4 {[%clk 0:03:01]}  d5 {[%clk 0:03:00]} 3. Nc3 {[%clk 0:03:01]}  Nf6 {[%clk 0:02:59]} 4. Bg5 {[%clk 0:03:01]}  dxe4 {[%clk 0:03:00]} 5. Nxe4 {[%clk 0:03:02]}  Be7 {[%clk 0:03:00]} 6. Bxf6 {[%clk 0:03:02]}  Bxf6 {[%clk 0:03:01]} 7. Nf3 {[%clk 0:03:01]}  Nd7 {[%clk 0:03:02]} 8. Bc4 {[%clk 0:02:53]}  a6 {[%clk 0:03:01]} 9. Qe2 {[%clk 0:02:52]}  Be7 {[%clk 0:03:00]} 10. d5 {[%clk 0:02:45]}  exd5 {[%clk 0:02:58]} 11. Bxd5 {[%clk 0:02:44]}  Nb6 {[%clk 0:02:53]} 12. Bb3 {[%clk 0:02:32]}  O-O {[%clk 0:02:49]} 13. Rd1 {[%clk 0:02:30]}  Qe8 {[%clk 0:02:45]} 14. O-O {[%clk 0:02:27]}  Bg4 {[%clk 0:02:45]} 15. h3 {[%clk 0:02:25]}  Bh5 {[%clk 0:02:39]} 16. Ng3 {[%clk 0:02:26]}  Bg6 {[%clk 0:02:32]} 17. Rfe1 {[%clk 0:02:06]}  Bb4 {[%clk 0:02:30]} 18. c3 {[%clk 0:02:03]}  Qxe2 {[%clk 0:02:28]} 19. Rxe2 {[%clk 0:02:03]}  Bd6 {[%clk 0:02:27]} 20. Nh4 {[%clk 0:01:48]}  Rfe8 {[%clk 0:02:22]} 21. Nxg6 {[%clk 0:01:34]}  Rxe2 {[%clk 0:02:14]} 22. Nxe2 {[%clk 0:01:31]}  hxg6 {[%clk 0:02:14]} 23. Kf1 {[%clk 0:01:29]}  a5 {[%clk 0:02:10]} 24. Rd4 {[%clk 0:01:26]}  a4 {[%clk 0:02:09]} 25. Bc2 {[%clk 0:01:26]}  Ra5 {[%clk 0:02:07]} 26. Be4 {[%clk 0:01:23]}  Rb5 {[%clk 0:02:05]} 27. Rd2 {[%clk 0:01:21]}  Nc4 {[%clk 0:02:03]} 28. Rc2 {[%clk 0:01:00]}  Nxb2 {[%clk 0:02:00]} 29. Nd4 {[%clk 0:01:00]}  Rb6 {[%clk 0:01:59]} 30. c4 {[%clk 0:00:55]}  Be5 {[%clk 0:01:56]} 31. Nf3 {[%clk 0:00:48]}  Bf6 {[%clk 0:01:54]} 32. a3 {[%clk 0:00:45]}  Rb3 {[%clk 0:01:49]} 33. Nd2 {[%clk 0:00:40]}  Rxa3 {[%clk 0:01:48]} 34. Bxb7 {[%clk 0:00:40]}  Nd3 {[%clk 0:01:41]} 35. g3 {[%clk 0:00:33]}  Ra1+ {[%clk 0:01:40]} 36. Kg2 {[%clk 0:00:30]}  Nb4 {[%clk 0:01:40]} 0-1


[Site "https://www.chess.com"]